bitfinex-derivatives/quotes_BNBF0:USTF0_20250303
["timestamp","ask_amount","ask_price","bid_price","bid_amount"]
[1740995190258,2.66796411,599.98,598.35,0.26370912]
[1740995190462,2.66796411,600.03,598.36,0.26370912]
[1740995190661,2.66796411,600.02,598.37,0.26370912]
[1740995190860,2.66796411,600.01,598.38,0.26370912]
[1740995191063,2.66796411,600.0,598.39,0.26370912]
[1740995191357,2.66796411,599.99,598.4,0.26370912]
[1740995191563,2.66796411,599.98,598.26,0.26370912]
[1740995191856,2.66796411,599.97,598.27,0.26370912]
[1740995192059,1.74236671,599.97,598.28,0.26370912]
[1740995192260,1.74236671,599.97,598.29,0.26370912]
[1740995192459,1.74236671,599.97,598.3,0.26370912]
[1740995192661,1.74236671,599.97,598.31,0.26411477]
[1740995192854,1.74236671,599.97,598.32,0.26411477]
[1740995193059,1.74236671,599.97,598.33,0.26411477]
[1740995193256,1.74236671,599.97,598.34,0.26411477]
[1740995193462,1.74236671,599.97,598.35,0.26411477]
[1740995193658,1.74236671,599.97,598.36,0.26411477]
[1740995193857,1.74236671,599.97,598.37,0.26411477]
[1740995194057,1.74236671,599.97,598.38,0.26411477]
[1740995194259,1.74236671,599.97,598.39,0.26411477]
[1740995194464,1.74236671,599.97,598.4,0.26411477]
[1740995194663,1.74236671,599.97,598.41,0.26411477]
[1740995194963,1.74236671,599.97,598.58,1.2343549]
[1740995195163,1.74236671,599.97,598.59,0.26411477]
[1740995196257,1.74236671,599.97,598.58,1.2343549]
[1740995196459,1.74236671,599.97,598.59,0.26424874]
[1740995197758,3.33537447,599.97,598.58,1.2343549]
[1740995197963,4.96930441,599.96,598.59,0.26414632]
[1740995198161,3.33537447,599.95,598.32,0.26414632]
[1740995198363,2.66829958,599.94,598.33,0.26414632]
[1740995198565,2.66829958,599.93,598.34,0.26414632]
[1740995198761,2.66829958,599.92,598.35,0.26414632]
[1740995198963,2.66829958,599.91,598.36,0.26414632]
[1740995199162,2.66829958,599.94,598.37,0.26414632]
[1740995199364,2.66829958,599.93,598.38,1.49850122]
[1740995199668,2.66829958,599.92,598.39,0.26414632]
[1740995199870,2.66829958,599.91,598.4,0.26414632]
[1740995200066,2.66829958,599.9,598.41,0.26414632]
[1740995200265,2.66829958,599.89,598.42,0.26414632]
[1740995200467,2.66829958,599.94,598.43,0.26414632]
[1740995200673,2.66829958,599.93,598.44,0.26414632]
[1740995200869,2.66829958,599.92,598.45,0.26414632]
[1740995201069,2.66829958,599.91,598.46,0.26414632]
[1740995201265,2.66829958,599.9,598.47,0.26414632]
[1740995201572,2.66829958,599.89,598.48,0.26414632]
[1740995201765,2.66829958,599.88,598.49,0.26414632]
[1740995201970,2.66829958,599.87,598.5,0.26414632]
[1740995202271,1.63392994,599.85,598.51,0.26414632]
[1740995202471,2.66829958,599.84,598.47,1.2343549]
[1740995202675,2.66829958,599.83,598.48,0.26492883]
[1740995202867,2.66829958,599.82,598.48,0.26492883]
[1740995203077,1.63392994,599.8,598.48,0.26492883]
[1740995203272,2.66829958,599.79,598.4,0.26492883]
[1740995203570,2.66829958,599.78,598.41,0.26492883]
[1740995203775,2.66829958,599.77,598.42,0.26492883]
[1740995204074,2.66829958,599.76,598.43,0.26492883]
[1740995204273,2.66829958,599.75,598.4,0.26492883]
[1740995204475,2.66829958,599.74,598.41,0.26492883]
[1740995204675,2.66829958,599.75,598.4,0.26492883]
[1740995204871,2.66829958,599.74,598.41,0.26492883]
[1740995205077,2.66829958,599.76,598.42,0.26492883]
[1740995205272,1.7426721,599.77,598.21,1.2343549]
[1740995205273,1.7426721,599.77,598.22,0.26492883]
[1740995205478,1.7426721,599.77,598.23,0.26492883]
[1740995205678,1.7426721,599.77,598.24,0.26492883]
[1740995205876,1.7426721,599.77,598.25,0.26492883]
[1740995206076,1.7426721,599.77,598.26,0.26492883]
[1740995206277,1.7426721,599.77,598.27,0.26492883]
[1740995206677,1.63392994,599.84,598.28,0.26492883]
[1740995206879,2.66829958,599.83,598.29,0.26492883]
[1740995207080,1.74289029,599.83,598.22,0.26492883]
[1740995207284,1.74289029,599.83,598.23,0.26492883]
[1740995207483,1.74289029,599.83,598.24,0.26460954]
[1740995207683,1.74289029,599.83,598.25,0.26460954]
[1740995207880,1.74289029,599.83,598.22,0.26460954]
[1740995208083,1.74289029,599.83,598.23,0.26460954]
[1740995208281,1.74289029,599.83,598.24,0.26460954]
[1740995208484,1.74289029,599.83,598.25,0.26460954]
[1740995208686,1.74289029,599.83,598.26,0.26460954]
[1740995208886,1.74289029,599.83,598.22,1.2343549]
[1740995209085,1.74289029,599.83,598.23,0.26452116]
[1740995209284,1.74289029,599.83,598.24,0.26452116]
[1740995209481,1.74289029,599.83,598.25,0.26452116]
[1740995209687,1.74289029,599.83,598.26,0.26452116]
[1740995209986,1.74289029,599.83,598.27,0.26452116]
[1740995210189,1.74289029,599.83,598.28,0.26452116]
[1740995210380,1.74289029,599.83,598.31,1.2343549]
[1740995210584,1.74289029,599.83,598.32,0.26452116]
[1740995210783,1.74289029,599.83,598.33,0.26452116]
[1740995210984,1.74289029,599.83,598.31,1.2343549]
[1740995210985,1.74289029,599.83,598.34,0.26452116]
[1740995211186,1.74289029,599.83,598.35,0.26452116]
[1740995211387,1.74289029,599.83,598.32,0.26452116]
[1740995211586,1.74289029,599.83,598.33,0.26452116]
[1740995211886,1.74289029,599.83,598.34,0.26452116]
[1740995212085,1.65071063,599.76,598.35,0.26452116]
[1740995212282,2.66997116,599.75,598.36,0.26452116]
[1740995212487,2.66997116,599.74,598.37,0.26452116]
[1740995212689,2.66997116,599.73,598.38,0.26452116]
[1740995212988,2.66997116,599.72,598.39,0.26452116]
[1740995213184,2.66997116,599.71,598.4,0.26452116]
[1740995213507,3.33746395,599.72,598.41,0.26452116]
[1740995213691,1.74280301,599.73,598.26,0.26452116]
[1740995213883,1.74280301,599.73,598.27,0.26452116]
[1740995214083,1.74280301,599.73,598.28,0.26452116]
[1740995214287,1.74280301,599.73,598.29,0.26452116]
[1740995214487,1.74280301,599.73,598.25,1.2343549]
[1740995214488,1.74280301,599.73,598.3,0.26452116]
[1740995214688,1.74280301,599.73,598.31,0.26452116]
[1740995214889,1.74280301,599.73,598.32,0.26452116]
[1740995215087,1.74280301,599.73,598.25,1.2343549]
[1740995215284,1.74280301,599.73,598.26,0.26438873]
[1740995215482,1.74280301,599.73,598.27,0.26438873]
[1740995215483,2.66997116,599.72,598.27,0.26438873]
[1740995215686,2.66997116,599.79,598.28,0.26438873]
[1740995215990,1.7427521,599.71,598.29,0.26438873]
[1740995216185,3.33746395,599.77,598.3,0.26438873]
[1740995216384,2.66997116,599.76,598.31,0.26438873]
[1740995216593,3.33746395,599.77,598.32,0.26438873]
[1740995216891,2.66997116,599.76,598.33,0.26438873]
[1740995217091,2.66997116,599.75,598.34,0.26438873]
[1740995217294,2.66997116,599.76,598.35,0.26438873]
[1740995217493,3.33746395,599.77,598.36,0.26438873]
[1740995217891,3.33746395,599.77,598.37,0.26438873]
[1740995218089,1.74270119,599.78,598.25,1.2343549]
[1740995218090,1.74270119,599.78,598.38,0.26438873]
[1740995218291,1.74270119,599.78,598.39,0.26438873]
[1740995218491,1.74270119,599.78,598.4,0.26438873]
[1740995218690,1.74270119,599.78,598.25,1.2343549]
[1740995218691,1.74270119,599.78,598.41,0.26438873]
[1740995218893,1.74270119,599.78,598.42,0.26438873]
[1740995219094,1.74270119,599.78,598.43,0.26438873]
[1740995219296,1.74270119,599.78,598.44,0.26438873]
[1740995219592,1.74270119,599.78,598.45,0.26438873]
[1740995219793,1.74270119,599.78,598.46,0.26438873]
[1740995219990,1.74270119,599.78,598.47,0.26438873]
[1740995220194,1.74270119,599.78,598.48,0.26438873]
[1740995220391,1.74270119,599.78,598.49,0.26438873]
[1740995220593,1.74270119,599.78,598.5,0.26438873]
[1740995220790,1.74270119,599.78,598.51,0.26438873]
[1740995221094,1.74270119,599.78,598.52,0.26392936]
[1740995221293,1.74270119,599.78,598.53,0.26392936]
[1740995221498,1.74270119,599.78,598.54,0.26392936]
[1740995221797,2.66855201,599.91,598.55,1.49828426]
[1740995221992,2.66855201,600.06,598.56,0.26392936]
[1740995222194,1.74223587,599.77,598.57,0.26392936]
[1740995222392,3.33572853,600.04,598.58,0.26392936]
[1740995222596,3.33572853,600.08,598.59,0.26392936]
[1740995222791,1.74212685,599.76,598.6,0.26392936]
[1740995222996,3.33572853,600.06,598.61,0.26392936]
[1740995223196,3.33572853,600.06,598.55,1.2343549]
[1740995223197,1.74178533,600.07,598.62,0.26392936]
[1740995223396,2.66855201,600.06,598.63,0.26392936]
[1740995223592,1.74178533,600.07,598.64,0.26392936]
[1740995223791,4.41033734,600.07,598.68,1.2343549]
[1740995223994,3.33572853,600.06,598.69,0.26392936]
[1740995224297,2.66855201,600.05,598.7,0.26392936]
[1740995224493,2.66855201,600.05,598.71,0.26392936]
[1740995224691,2.66855201,600.04,598.72,0.26392936]
[1740995224893,2.66855201,600.05,598.73,0.26392936]
[1740995225091,1.74183619,600.03,598.69,0.26392936]
[1740995225290,2.66855201,600.02,598.7,0.26392936]
[1740995225491,3.33572853,600.02,598.68,1.2343549]
[1740995225690,3.33572853,600.02,598.71,0.26400708]
[1740995225889,2.66855201,600.01,598.72,0.26400708]
[1740995226094,2.66855201,600.0,598.69,0.26400708]
[1740995226294,2.66855201,599.99,598.7,0.26400708]
[1740995226495,2.66855201,599.98,598.71,0.26400708]
[1740995226691,2.66855201,599.97,598.63,0.26400708]
[1740995226897,2.66855201,599.96,598.64,0.26400708]
[1740995227096,2.66855201,599.95,598.63,0.26400708]
[1740995227297,2.66855201,599.94,598.64,0.26400708]
[1740995227499,3.33572853,600.01,598.63,0.26400708]
[1740995227699,2.66855201,600.0,598.64,0.26400708]
[1740995227902,2.66855201,599.99,598.65,0.26400708]
[1740995228202,2.66855201,599.98,598.66,0.26400708]
[1740995228394,2.66932642,599.97,598.67,0.26400708]
[1740995228695,2.66932642,599.98,598.68,0.26400708]
[1740995228899,2.66932642,599.99,598.69,0.26400708]
[1740995229099,3.33665802,599.99,598.7,0.26400708]
[1740995229292,3.33665802,599.99,598.38,0.26400708]
[1740995229498,3.33665802,599.99,598.42,1.2343549]
[1740995229698,3.33665802,599.99,598.43,0.26400708]
[1740995229895,3.33665802,599.99,598.44,0.26400708]
[1740995230097,3.33665802,599.99,598.45,0.26400708]
[1740995230301,3.33665802,599.99,598.46,0.26400708]
[1740995230497,0.66720138,599.99,598.47,0.26400708]
[1740995230702,1.74209051,600.0,598.48,0.26400708]
[1740995230903,1.74209051,600.0,598.49,0.26400708]
[1740995231202,1.74209051,600.0,598.5,0.26400708]
[1740995231398,1.74209051,600.0,598.51,0.26400708]
[1740995231602,1.74209051,600.0,598.58,1.2343549]
[1740995231799,1.74209051,600.0,598.59,0.26400708]
[1740995231998,1.74209051,600.0,598.6,0.26400866]
[1740995232199,1.74209051,600.0,598.59,0.26400866]
[1740995232497,1.74209051,600.0,598.6,0.26400866]
[1740995232706,1.74209051,600.0,598.61,0.26400866]
[1740995232897,1.74209051,600.0,598.59,0.26400866]
[1740995233102,1.74209051,600.0,598.6,0.26400866]
[1740995233504,1.74209051,600.0,598.61,0.26400866]
[1740995233704,3.33581576,600.11,598.62,0.26400866]
[1740995233902,2.66862966,600.1,598.63,0.26400866]
[1740995234105,3.001913,600.09,598.64,0.59809926]
[1740995234301,2.66862966,600.08,598.65,0.26400866]
[1740995234503,2.66862966,600.07,598.65,0.26400866]
[1740995234705,1.65405755,599.98,598.65,0.26400866]
[1740995234903,2.66862966,599.97,598.65,0.26400866]
[1740995235102,2.66862966,599.96,598.65,0.26400866]
[1740995235304,2.66862966,599.95,598.65,0.26400866]
[1740995235603,2.66862966,599.94,598.65,0.26400866]
[1740995235908,2.66862966,599.93,598.65,0.26400866]
[1740995236111,2.66862966,599.92,598.65,0.26400866]
[1740995236303,2.66862966,599.91,598.65,0.26400866]
[1740995236605,2.66862966,599.9,598.65,0.26400866]
[1740995236810,2.66919993,599.89,598.65,0.26400866]
[1740995237110,1.74203237,599.89,598.65,0.26400866]
[1740995238005,2.66919993,599.88,598.65,0.26400866]
[1740995238207,1.74203237,599.89,598.65,0.26400866]
[1740995238404,2.66919993,599.88,598.65,0.26400866]
[1740995238608,2.66919993,599.87,598.65,0.26400866]
[1740995238808,2.66919993,599.86,598.65,0.26400866]
[1740995239009,2.66919993,599.85,598.65,0.26400866]
[1740995239211,2.66919993,599.84,598.65,0.26400866]
[1740995239410,2.66919993,599.83,598.65,0.26400866]
[1740995239610,2.66919993,599.82,598.65,0.26400866]
[1740995239813,2.66919993,599.81,598.65,0.26400866]
[1740995240012,2.66919993,599.8,598.65,0.26400866]
[1740995240212,2.66919993,599.79,598.65,0.26400866]
[1740995240412,2.66919993,599.78,598.65,0.26400866]
[1740995240607,2.66919993,599.8,598.65,0.26400866]
[1740995240812,2.66925251,599.79,598.65,0.26400866]
[1740995241014,2.66925251,599.78,598.65,0.26400866]
[1740995241211,2.66925251,599.77,598.65,0.26400866]
[1740995241411,2.66925251,599.76,598.66,0.33407944]
[1740995241608,2.66925251,599.75,598.67,0.26400866]
[1740995241812,0.66731312,599.81,598.67,0.26400866]
[1740995241813,2.66925251,599.8,598.67,0.26400866]
[1740995242010,2.66925251,599.79,598.67,0.26400866]
[1740995242210,2.66925251,599.78,598.67,0.26400866]
[1740995242411,2.66925251,599.77,598.67,0.26400866]
[1740995242615,2.66925251,599.76,598.67,0.26400866]
[1740995242815,2.66925251,599.8,598.67,0.26400866]
[1740995243012,2.66925251,599.79,598.67,0.26400866]
[1740995243213,1.74224314,599.75,598.67,0.26400866]
[1740995243615,2.66925251,599.74,598.67,0.26400866]
[1740995243817,2.66925251,599.73,598.67,0.26400866]
[1740995244111,2.66925251,599.72,598.67,0.26400866]
[1740995244314,2.66925251,599.71,598.67,0.26400866]
[1740995244513,2.66925251,599.7,598.66,0.33407944]
[1740995244713,2.66925251,599.69,598.67,0.26436218]
[1740995244916,2.66954549,599.68,598.67,0.26436218]
[1740995245116,2.66954549,599.73,598.67,0.26436218]
[1740995245418,2.66954549,599.72,598.67,0.26436218]
[1740995245617,0.66738637,599.74,598.67,0.26436218]
[1740995245618,2.66954549,599.71,598.67,0.26436218]
[1740995245815,2.66954549,599.7,598.67,0.26436218]
[1740995246015,2.66954549,599.73,598.67,0.26436218]
[1740995246211,2.66954549,599.74,598.67,0.26436218]
[1740995246514,2.66954549,599.73,598.67,0.26436218]
[1740995246718,2.66954549,599.74,598.67,0.26436218]
[1740995246920,2.66954549,599.73,598.67,0.26436218]
[1740995247120,2.66954549,599.72,598.67,0.26436218]
[1740995247319,2.66954549,599.71,598.67,0.26436218]
[1740995247522,2.66954549,599.7,598.67,0.26436218]
[1740995247719,2.66954549,599.69,598.67,0.26436218]
[1740995247918,2.66954549,599.68,598.67,0.26436218]
[1740995248116,3.33688514,599.67,598.67,0.26436218]
[1740995248315,3.33688514,599.66,598.67,0.26436218]
[1740995248514,2.66954549,599.65,598.67,0.26436218]
[1740995248719,2.67000681,599.64,598.67,0.26436218]
[1740995248920,2.67000681,599.63,598.67,0.26436218]
[1740995249116,2.67000681,599.62,598.67,0.26436218]
[1740995249317,2.67000681,599.61,598.67,0.26436218]
[1740995249515,2.67000681,599.6,598.67,0.26436218]
[1740995249716,2.67000681,599.59,598.67,0.26436218]
[1740995249920,2.67000681,599.58,598.67,0.26436218]
[1740995250122,1.74264301,599.64,598.67,0.26436218]
[1740995250919,2.67000681,599.63,598.67,0.26436218]
[1740995251122,2.67000681,599.62,598.66,0.33407944]
[1740995251320,2.67000681,599.61,598.67,0.26458563]
[1740995251526,2.67000681,599.62,598.67,0.26458563]
[1740995251730,2.67000681,599.61,598.67,0.26458563]
[1740995252032,2.67000681,599.6,598.67,0.26458563]
[1740995252231,1.74280301,599.61,598.67,0.26458563]
[1740995252232,2.67000681,599.59,598.67,0.26458563]
[1740995252436,3.33752857,599.6,598.67,0.26458563]
[1740995252633,2.67000681,599.59,598.67,0.26458563]
[1740995252825,2.67000681,599.58,598.67,0.26458563]
[1740995253132,2.67000681,599.59,598.68,0.26458563]
[1740995253432,2.67000681,599.6,598.69,0.26458563]
[1740995253632,2.67000681,599.59,598.52,0.26458563]
[1740995253828,2.67000681,599.58,598.53,0.26474948]
[1740995254034,2.67000681,599.57,598.31,0.26474948]
[1740995254230,0.66752176,599.6,598.3,1.2343549]
[1740995254231,2.67000681,599.59,598.32,0.26474948]
[1740995254433,2.67000681,599.6,598.31,0.26474948]
[1740995254732,2.67000681,599.59,598.31,0.26474948]
[1740995254936,3.00357364,599.58,598.31,0.26474948]
[1740995255138,2.67000681,599.57,598.31,0.26474948]
[1740995255337,0.33356683,599.58,598.31,0.26474948]
[1740995255338,2.67000681,599.56,598.31,0.26474948]
[1740995255537,2.67000681,599.55,598.31,0.26474948]
[1740995255734,2.67000681,599.54,598.32,0.26470557]
[1740995256038,2.67000681,599.53,598.33,0.26470557]
[1740995256237,2.67000681,599.57,598.31,0.26470557]
[1740995256430,2.67000681,599.56,598.32,0.26470557]
[1740995256633,2.67000681,599.55,597.84,0.26470557]
[1740995256833,2.67000681,599.54,597.86,0.33452647]
[1740995257037,2.67000681,599.53,597.87,0.26470557]
[1740995257239,2.67000681,599.52,597.87,0.26470557]
[1740995257439,2.67000681,599.51,597.87,0.26470557]
[1740995257639,2.67000681,599.5,597.87,0.26470557]
[1740995257934,2.67000681,599.49,597.87,0.26470557]
[1740995258138,2.67000681,599.48,597.87,0.26470557]
[1740995258335,2.67000681,599.47,597.87,0.26470557]
[1740995258539,2.67000681,599.46,597.87,0.26470557]
[1740995258739,2.67000681,599.45,597.87,0.26470557]
[1740995258938,2.67000681,599.47,597.87,0.26470557]
[1740995259136,2.67000681,599.46,597.87,0.26470557]
[1740995259441,2.67000681,599.45,597.87,0.26470557]
[1740995259639,2.67000681,599.44,597.87,0.26470557]
[1740995259837,2.67000681,599.47,597.87,0.26470557]
[1740995260044,1.65943954,599.4,597.88,0.26470557]
[1740995260243,4.32944635,599.39,597.89,0.26470557]
[1740995260445,4.99696811,599.38,597.9,0.26470557]
[1740995260643,4.99696811,599.37,597.91,0.26470557]
[1740995260843,3.33752857,599.36,597.92,0.26470557]
[1740995261038,2.67000681,599.35,597.93,0.26470557]
[1740995261239,2.67180192,599.34,597.94,0.26470557]
[1740995261441,2.67180192,599.33,597.95,0.26470557]
[1740995261642,2.67180192,599.32,597.96,0.26470557]
[1740995261945,1.6549115,599.39,597.75,1.2343549]
[1740995261946,2.67180192,599.31,597.97,0.5991705]
[1740995262145,2.67180192,599.3,597.98,0.26470557]
[1740995262343,2.67180192,599.29,597.98,0.26470557]
[1740995262643,3.3397524,599.37,597.98,0.26470557]
[1740995262843,1.74369809,599.49,597.98,0.26470557]
[1740995262844,2.67180192,599.36,597.98,0.26470557]
[1740995263145,2.67180192,599.35,597.98,0.26470557]
[1740995263339,2.67180192,599.34,597.99,0.26470557]
[1740995263535,2.67180192,599.33,598.0,0.26470557]
[1740995263738,2.67180192,599.32,598.01,0.26470557]
[1740995263940,2.67180192,599.42,598.02,0.26470557]
[1740995264141,1.74380003,599.32,598.03,0.26470557]
[1740995264340,3.3397524,599.4,598.04,0.26470557]
[1740995264538,1.74380731,599.31,598.05,0.26470557]
[1740995264841,3.3397524,599.38,598.06,0.26470557]
[1740995265044,1.74381459,599.3,597.98,0.26470557]
[1740995265238,1.74381459,599.3,597.99,0.26470557]
[1740995265541,1.74395296,599.29,598.0,0.26470557]
[1740995265739,1.74395296,599.29,597.98,0.26470557]
[1740995265942,1.74395296,599.29,597.99,0.26470557]
[1740995266238,1.74395296,599.29,598.0,0.26470557]
[1740995266543,1.74395296,599.29,598.01,0.26470557]
[1740995266745,1.6549115,599.41,597.98,0.26470557]
[1740995267042,1.74409135,599.28,597.99,0.26470557]
[1740995267244,1.6549115,599.4,598.0,0.26470557]
[1740995267441,1.74409863,599.27,598.01,0.26470557]
[1740995267745,1.65042809,599.4,598.02,0.26470557]
[1740995267944,1.74410592,599.26,597.98,0.26470557]
[1740995268244,1.98410065,599.39,597.99,0.59915932]
[1740995268440,1.7441132,599.25,598.0,0.26470557]
[1740995268640,1.98410065,599.39,598.0,0.26470557]
[1740995268842,0.30688795,599.38,598.0,0.26470557]
[1740995269042,1.65042809,599.34,598.0,0.26470557]
[1740995269345,4.32120236,599.37,598.0,0.26470557]
[1740995269544,1.95575492,599.36,598.0,0.26470557]
[1740995269744,1.64884673,599.33,598.0,0.26470557]
[1740995269944,0.30690819,599.32,598.0,0.26470557]
[1740995270140,1.64884673,599.34,598.0,0.26470557]
[1740995270345,1.95576418,599.33,598.0,0.26470557]
[1740995270545,0.30691745,599.32,598.0,0.26470557]
[1740995270741,1.95576418,599.32,598.0,0.26470557]
[1740995270942,0.30691745,599.31,598.0,0.26470557]
[1740995271146,0.33372267,599.3,598.0,0.26470557]
[1740995271345,2.97927308,599.29,598.0,0.26470557]
[1740995271545,4.32120236,599.29,598.0,0.26470557]
[1740995271742,4.62689548,599.28,598.0,0.26470557]
[1740995271943,1.64731567,599.26,598.0,0.26470557]
[1740995272248,2.97957981,599.25,598.0,0.26470557]
[1740995272448,1.64731567,599.13,598.0,0.26470557]
[1740995272646,3.00646687,599.12,598.0,0.26470557]
[1740995272846,2.67264393,599.11,598.0,0.26470557]
[1740995273048,2.67264393,599.1,598.0,0.26470557]
[1740995273348,2.67264393,599.09,598.0,0.26470557]
[1740995273547,2.67264393,599.08,598.0,0.26470557]
[1740995273743,2.67264393,599.07,598.0,0.26470557]
[1740995274048,2.67264393,599.06,598.0,0.26470557]
[1740995274245,2.67264393,599.05,598.0,0.26470557]
[1740995274442,2.67264393,599.04,598.0,0.26470557]
[1740995274743,2.67264393,599.03,598.0,0.26470557]
[1740995274946,2.67264393,599.02,598.0,0.26470557]
[1740995275145,3.34080491,599.01,598.0,0.26470557]
[1740995275346,3.34080491,599.0,598.0,0.26470557]
[1740995275543,2.67264393,598.99,598.0,0.26470557]
[1740995275744,2.67315993,598.98,598.0,0.26470557]
[1740995275947,2.67315993,598.97,598.0,0.26470557]
[1740995276147,2.67315993,598.96,598.0,0.26470557]
[1740995276343,2.67315993,598.95,598.0,0.26470557]
[1740995276548,2.67315993,598.94,598.0,0.26470557]
[1740995276746,2.67315993,598.93,598.0,0.26470557]
[1740995276946,2.67315993,598.92,598.0,0.26470557]
[1740995277147,2.67315993,599.04,598.0,0.26470557]
[1740995277350,2.67315993,599.03,598.0,0.26470557]
[1740995277651,2.67315993,599.02,598.0,0.26470557]
[1740995277951,2.67315993,599.01,598.0,0.26470557]
[1740995278151,2.67315993,599.08,598.0,0.26470557]
[1740995278352,2.67315993,599.07,598.0,0.26470557]
[1740995278554,2.67315993,599.06,598.0,0.26470557]
[1740995278852,2.67315993,599.05,598.0,0.26470557]
[1740995279046,2.67315993,599.04,598.0,0.26470557]
[1740995279251,2.67315993,599.03,598.0,0.26470557]
[1740995279552,2.67315993,599.02,598.0,0.26470557]
[1740995279753,2.67315993,599.04,598.0,0.26470557]
[1740995280353,1.74430261,599.05,598.01,0.33444256]
[1740995280553,1.74430261,599.05,598.02,0.26470557]
[1740995280751,1.74430261,599.05,598.03,0.33443138]
[1740995280951,1.74430261,599.05,598.04,0.26470557]
[1740995283348,1.74430261,599.05,598.03,0.33443138]
[1740995283548,1.74430261,599.05,598.04,0.26561711]
[1740995284950,1.74430261,599.05,598.03,0.33443138]
[1740995285150,1.74430261,599.05,598.04,0.26590861]
[1740995286152,2.67194979,599.04,598.04,0.26590861]
[1740995286358,2.67194979,599.03,598.04,0.26590861]
[1740995286551,2.67194979,599.02,598.04,0.26590861]
[1740995286756,2.67194979,599.01,598.04,0.26590861]
[1740995286957,2.67194979,599.03,598.04,0.26590861]
[1740995287258,2.67194979,599.02,598.04,0.26590861]
[1740995287454,2.67194979,599.01,598.04,0.26590861]
[1740995287757,1.64167472,598.97,598.04,0.26590861]
[1740995287958,4.98160864,598.96,598.04,0.26590861]
[1740995288154,4.98160864,598.95,598.05,0.26623802]
[1740995288359,3.33993392,598.94,598.06,0.26623802]
[1740995288560,3.33993392,598.93,598.04,0.26623802]
[1740995288761,3.33993392,598.93,598.03,0.33443138]
[1740995288762,3.33993392,598.92,598.05,0.26623802]
[1740995288954,1.64167472,598.86,598.04,0.26623802]
[1740995289157,1.64167472,598.84,598.05,0.26623802]
[1740995289354,2.67344076,598.83,597.47,0.26623802]
[1740995289561,0.33382294,599.12,597.49,0.33473363]
[1740995289562,3.34180095,598.82,597.49,0.33473363]
[1740995289862,3.34180095,598.81,597.5,0.26635153]
[1740995290162,3.34180095,598.8,597.52,0.33471682]
[1740995290364,3.34180095,598.79,597.53,0.26635153]
[1740995290564,3.34180095,598.78,597.54,0.60105715]
[1740995290764,3.34180095,598.77,597.55,0.60105155]
[1740995290957,3.34180095,598.76,597.56,0.60104595]
[1740995291161,2.67344076,598.75,597.57,0.60104035]
[1740995291361,2.67344076,598.74,597.58,0.60102113]
[1740995291664,3.34180095,598.73,597.59,0.26633791]
[1740995291962,3.34180095,598.72,597.6,0.26633791]
[1740995292166,3.34180095,598.71,597.61,0.26633791]
[1740995292359,3.34180095,598.7,597.62,0.26633791]
[1740995292559,2.67344076,598.69,597.63,0.26633791]
[1740995292759,2.67344076,598.68,597.59,0.26633791]
[1740995292959,2.67344076,598.67,597.6,0.26633791]
[1740995293164,2.67344076,598.66,597.59,0.26633791]
[1740995293364,2.67344076,598.65,597.59,0.26633791]
[1740995293564,2.67344076,598.64,597.59,0.26633791]
[1740995293766,2.67344076,598.63,597.59,0.26633791]
[1740995293964,2.67344076,598.62,597.59,0.26633791]
[1740995294169,3.34180095,598.83,597.59,0.26633791]
[1740995294363,3.34180095,598.82,597.6,0.33467202]
[1740995294663,2.67344076,598.81,597.61,0.26679502]
[1740995294867,2.67344076,598.8,597.61,0.26679502]
[1740995295067,2.67344076,598.79,597.61,0.26679502]
[1740995295269,2.67344076,598.78,597.61,0.26679502]
[1740995295466,2.67344076,598.83,597.61,0.26679502]
[1740995295667,2.67344076,598.82,597.61,0.26679502]
[1740995295868,3.34180095,598.81,597.62,0.33466082]
[1740995296068,2.67344076,598.8,597.63,0.26670624]
[1740995296264,2.67344076,598.79,597.63,0.26670624]
[1740995296461,2.67344076,598.78,597.63,0.26670624]
[1740995296667,3.38732784,598.85,597.63,0.26670624]
[1740995296668,2.67344076,598.77,597.63,0.26670624]
[1740995296869,2.67344076,598.76,597.63,0.26670624]
[1740995297070,2.67344076,598.75,597.64,0.33464962]
[1740995297375,2.67344076,598.74,597.65,0.26670624]
[1740995297570,2.67344076,598.73,597.66,0.26687868]
[1740995297871,2.67344076,598.72,597.67,0.26687868]
[1740995298172,2.67344076,598.71,597.68,0.26687868]
[1740995298369,2.67344076,598.7,597.69,0.26687868]
[1740995298569,2.67344076,598.69,597.65,0.26687868]
[1740995298771,2.67344076,598.68,597.66,0.26687868]
[1740995298962,2.67344076,598.67,597.67,0.26687868]
[1740995299162,2.67344076,598.66,597.65,0.26687868]
[1740995299468,2.67344076,598.65,597.66,0.26687868]
[1740995299667,2.67344076,598.75,597.67,0.26687868]
[1740995299864,2.67344076,598.74,597.65,0.26687868]
[1740995300074,1.74545455,598.64,597.66,0.26687868]
[1740995300271,3.34180095,598.72,597.65,0.26687868]
[1740995300471,1.74546184,598.63,597.66,0.26687868]
[1740995300671,1.74546184,598.63,597.67,0.26690359]
[1740995300871,2.67344076,598.69,597.68,0.26690359]
[1740995301074,1.74532324,598.62,597.69,0.26690359]
[1740995301269,3.34189319,598.86,597.65,0.26690359]
[1740995301572,1.74540348,598.61,597.66,0.26690359]
[1740995301872,3.34189319,598.84,597.67,0.26690359]
[1740995302069,2.67344076,598.83,597.65,0.26690359]
[1740995302369,2.67344076,598.82,597.66,0.26690359]